bitfinex/quotes_ETHUSD_20251010
["timestamp","ask_amount","ask_price","bid_price","bid_amount"]
[1760096980446,9.48601939,4345.9,4345.8,1.918]
[1760096980647,10.17792604,4345.9,4345.8,5.379]
[1760096980954,6.04536337,4345.9,4345.8,5.379]
[1760096982539,6.04416337,4345.9,4345.8,5.379]
[1760096983046,3.10954402,4345.9,4345.8,5.379]
[1760096983245,4.71865672,4345.9,4345.8,5.379]
[1760096984089,4.71985672,4345.9,4345.8,5.379]
[1760096984753,2.41763737,4345.9,4345.8,5.379]
[1760096985269,1.922,4345.9,4345.8,5.379]
[1760096985775,1.9212,4345.9,4345.8,5.379]
[1760096985982,2.41683737,4345.9,4345.8,5.379]
[1760096986355,4.71785672,4345.9,4345.8,5.379]
[1760096986556,4.71905672,4345.9,4345.8,5.379]
[1760096987555,4.71785672,4345.9,4345.8,5.379]
[1760096990416,2.41683737,4345.9,4345.8,5.379]
[1760096990621,4.71785672,4345.9,4345.8,5.379]
[1760096991418,1.9212,4345.9,4345.8,5.379]
[1760096992740,0.002,4345.9,4345.8,8.49134441]
[1760096993022,0.002,4345.9,4345.8,9.03734441]
[1760096994289,0.002,4345.9,4345.8,13.16990708]
[1760096994485,0.002,4345.9,4345.8,9.03734441]
[1760096995524,0.002,4345.9,4345.8,13.90167787]
[1760097007935,0.0012,4345.9,4345.8,13.90167787]
[1760097008432,0.0012,4345.9,4345.8,9.03734441]
[1760097008634,0.0012,4345.9,4345.8,3.65934441]
[1760097008810,0.0012,4345.9,4345.8,15.02434441]
[1760097013040,0.0012,4345.9,4345.8,3.22774441]
[1760097013215,0.0012,4345.9,4345.8,8.23507229]
[1760097023156,0.0012,4345.9,4345.8,8.12067229]
[1760097023458,0.0012,4345.9,4345.8,14.10967229]
[1760097030055,0.0004,4345.9,4345.8,14.10967229]
[1760097033066,0.0004,4345.9,4345.8,6.20467229]
[1760097033264,0.0004,4345.9,4345.8,14.22407229]
[1760097033452,0.0004,4345.9,4345.8,16.37235061]
[1760097040073,0.0004,4345.9,4345.8,5.00735061]
[1760097040274,0.0004,4345.9,4345.8,14.22407229]
[1760097052097,0.0008,4346.0,4345.9,2.30101935]
[1760097052426,0.0008,4346.0,4345.9,2.77401935]
[1760097057283,0.0008,4346.0,4345.9,2.79702954]
[1760097057488,0.0008,4346.0,4345.9,6.93039267]
[1760097057686,0.0008,4346.0,4345.9,9.15915293]
[1760097072561,0.0008,4346.0,4345.9,13.29251606]
[1760097072860,0.0008,4346.0,4345.9,15.30472455]
[1760097074157,0.002,4346.2,4346.1,2.30091346]
[1760097074326,0.002,4346.2,4346.1,5.97581346]
[1760097074527,0.002,4346.2,4346.1,8.22758391]
[1760097074758,0.002,4346.2,4346.1,8.69898391]
[1760097075969,0.002,4346.2,4346.1,10.61898391]
[1760097076472,0.012,4346.9,4346.1,10.61898391]
[1760097076473,1e-08,4346.9,4346.4,2.30075464]
[1760097076676,0.01,4347.9,4346.4,2.30075464]
[1760097076677,0.01,4347.9,4347.8,2.3000138]
[1760097076876,0.01,4347.9,4347.8,17.79837693]
[1760097077040,0.01,4347.9,4347.8,18.26977693]
[1760097077961,0.01,4347.9,4347.8,20.32676317]
[1760097082583,0.01,4347.9,4347.8,20.44116317]
[1760097083085,1e-08,4347.9,4347.8,24.5745263]
[1760097083380,0.01,4349.9,4348.8,2.29948491]
[1760097083600,0.01,4349.9,4348.8,11.94524288]
[1760097083779,0.01,4349.9,4348.8,12.18127958]
[1760097083980,0.01,4349.9,4348.8,12.65267958]
[1760097087805,0.01,4349.9,4348.8,7.27767958]
[1760097088105,0.01,4349.9,4348.8,14.24428491]
[1760097092005,0.0012,4349.8,4348.8,2.41388491]
[1760097092209,0.0012,4349.8,4348.8,13.77288491]
[1760097092406,0.0012,4349.8,4348.8,14.24218491]
[1760097092611,0.01,4349.9,4348.8,14.24218491]
[1760097092811,2.30890606,4349.9,4348.8,14.24218491]
[1760097092993,2.31010606,4349.9,4348.8,14.24218491]
[1760097093193,0.0112,4349.9,4348.8,14.24218491]
[1760097093607,0.01,4349.9,4348.8,14.24218491]
[1760097095928,0.01,4349.9,4348.8,18.37554804]
[1760097096224,0.0092,4348.9,4348.8,19.81248039]
[1760097101926,0.0112,4348.9,4348.8,19.81248039]
[1760097104039,0.0112,4348.9,4348.8,7.78688491]
[1760097104237,0.0112,4348.9,4348.8,8.25618491]
[1760097107737,0.0112,4348.9,4348.8,2.88318491]
[1760097107937,0.0112,4348.9,4348.8,14.24118491]
[1760097115075,0.0112,4348.9,4348.8,16.16118491]
[1760097115400,0.0112,4348.9,4348.8,18.41295536]
[1760097117586,0.0112,4348.9,4348.8,23.26992722]
[1760097118170,0.0104,4348.9,4348.8,23.26992722]
[1760097120281,0.002,4349.4,4348.9,4.21943204]
[1760097120464,0.002,4349.4,4349.3,7.27059242]
[1760097120795,0.002,4349.4,4349.3,13.95258007]
[1760097121132,0.002,4349.4,4349.3,14.38958007]
[1760097122532,0.01,4349.9,4349.4,2.2991677]
[1760097122713,0.01,4349.9,4349.8,7.15592813]
[1760097122911,1e-08,4349.9,4349.8,14.56232813]
[1760097123097,1e-08,4349.9,4349.8,16.72916369]
[1760097124497,1e-08,4349.9,4349.8,22.71316369]
[1760097125336,0.01,4350.9,4350.8,9.07539973]
[1760097125501,0.01,4350.9,4350.8,14.56179973]
[1760097125699,0.01,4350.9,4350.8,14.99879973]
[1760097125929,1e-08,4350.9,4350.8,16.75059965]
[1760097126127,0.01,4351.9,4351.1,2.2982694]
[1760097126338,0.01,4351.9,4351.8,7.26927157]
[1760097126508,0.01,4351.9,4351.8,20.54627157]
[1760097126708,0.01,4351.9,4351.8,20.98327157]
[1760097126903,0.01,4352.9,4352.8,2.2973718]
[1760097127141,0.01,4352.9,4352.8,7.80774551]
[1760097127354,0.01,4352.9,4352.8,8.2217718]
[1760097128231,0.01,4352.9,4352.8,14.2047718]
[1760097130244,0.01,4352.9,4352.8,2.8487718]
[1760097130430,0.01,4352.9,4352.8,8.2207718]
[1760097130632,0.01,4352.9,4352.8,0.5514]
[1760097130828,0.01,4352.9,4352.8,5.4864]
[1760097131027,0.01,4352.9,4352.8,5.9234]
[1760097131424,0.01,4352.9,4352.8,8.2207718]
[1760097131821,0.01,4352.9,4352.8,5.9234]
[1760097132221,0.01,4352.9,4352.8,8.2207718]
[1760097132663,0.01,4352.9,4352.8,5.9234]
[1760097133232,0.01,4352.9,4352.8,0.1144]
[1760097133532,0.01,4352.9,4352.8,3.5714]
[1760097133736,0.01,4352.9,4352.8,0.1144]
[1760097134164,0.01,4352.9,4352.8,3.6044]
[1760097134324,2.30731902,4352.9,4352.8,3.6044]
[1760097134658,2.30731902,4352.9,4352.8,5.371]
[1760097135548,0.0212,4352.9,4352.5,0.1144]
[1760097135756,2.29742458,4352.7,4352.6,5.371]
[1760097136055,2.29751242,4352.6,4352.1,0.1144]
[1760097136259,0.0112,4352.7,4352.1,0.1144]
[1760097136260,2.30862467,4352.7,4352.2,5.371]
[1760097136435,2.29742467,4352.7,4352.2,5.371]
[1760097136855,2.29748205,4352.6,4352.2,5.371]
[1760097137656,2.29742564,4352.7,4352.2,5.371]
[1760097137829,0.1144,4352.8,4352.2,5.371]
[1760097138222,2.29744112,4352.7,4352.2,5.371]
[1760097139537,0.1144,4352.8,4352.2,5.371]
[1760097139741,0.01,4352.9,4352.2,5.808]
[1760097139951,0.01,4352.9,4352.5,0.1144]
[1760097140152,0.01,4352.9,4352.6,3.47897477]
[1760097140364,0.0092,4352.9,4352.6,3.47897477]
[1760097141228,0.0092,4352.9,4352.7,0.437]
[1760097141434,0.0092,4352.9,4352.8,3.59337371]
[1760097141435,0.0112,4352.9,4352.8,3.59337371]
[1760097141634,0.0112,4352.9,4352.8,4.03037371]
[1760097142077,0.0112,4352.9,4352.8,3.5704]
[1760097142454,0.0112,4352.9,4352.8,0.1144]
[1760097142766,0.0112,4352.9,4352.8,3.5704]
[1760097142938,0.0112,4352.9,4352.8,5.4844]
[1760097144969,2.30851902,4352.9,4352.8,5.4844]
[1760097145168,2.29742476,4352.7,4352.3,0.1144]
[1760097145371,2.29742476,4352.7,4352.4,5.37]
[1760097146044,0.0224,4352.9,4352.4,5.37]
[1760097146360,0.0112,4352.8,4352.5,1.914]
[1760097146560,0.0112,4352.8,4352.6,3.456]
[1760097146561,2.29742458,4352.7,4352.6,3.456]
[1760097146762,0.0112,4352.9,4352.3,0.1144]
[1760097147069,0.0112,4352.9,4352.4,2.439]
[1760097147070,2.29753015,4352.5,4352.4,2.439]
[1760097147271,0.1144,4352.6,4352.4,5.37]
[1760097147446,2.41188659,4352.6,4352.4,5.37]
[1760097147782,0.1144,4352.6,4352.4,5.37]
[1760097148249,2.29753015,4352.5,4352.4,5.37]
[1760097148450,2.41188624,4352.6,4352.4,5.37]
[1760097149641,0.1144,4352.6,4352.4,5.37]
[1760097151207,2.41187878,4352.6,4352.4,5.37]
[1760097151485,2.29753015,4352.5,4352.4,5.37]
[1760097151646,0.0112,4352.5,4351.9,0.1144]
[1760097151979,0.0112,4352.4,4352.0,5.37]
[1760097152145,0.0112,4352.4,4352.1,3.456]
[1760097152345,2.29754642,4352.5,4352.2,1.914]
[1760097152586,0.0112,4352.4,4352.3,3.456]
[1760097152789,0.0112,4352.5,4352.3,3.456]
[1760097152952,2.30873422,4352.5,4352.3,3.456]
[1760097153275,0.1144,4352.6,4351.0,0.4493]
[1760097153276,2.29777289,4352.1,4351.0,0.4493]
[1760097153576,0.1256,4352.2,4351.5,0.1144]
[1760097153883,0.1144,4352.2,4351.6,3.456]
[1760097154046,0.1144,4352.2,4351.6,5.75400181]
[1760097155380,0.1144,4352.2,4351.7,2.29790931]
[1760097156280,0.1144,4352.2,4351.6,3.456]
[1760097156481,2.41213818,4352.2,4351.6,3.456]
[1760097156686,0.1256,4352.2,4351.6,3.456]
[1760097156985,0.1256,4352.2,4351.6,5.75399292]
[1760097157162,0.1256,4352.2,4351.6,2.29799292]
[1760097157483,0.62741186,4352.9,4351.8,4.85697186]
[1760097157669,0.0112,4352.9,4352.8,7.15434366]
[1760097157874,0.0112,4352.9,4352.8,13.43004049]
[1760097158172,0.0112,4352.9,4352.8,8.2310718]
[1760097160756,0.0112,4352.9,4352.8,6.3170718]
[1760097161005,0.0112,4352.9,4352.8,0.1144]
[1760097161153,0.0112,4352.9,4352.8,7.7817718]
[1760097162466,0.0104,4352.9,4352.8,7.7817718]
[1760097163355,0.0104,4352.9,4352.8,8.2310718]
[1760097165391,0.0104,4352.9,4352.8,14.14099787]
[1760097167892,0.0104,4352.9,4352.8,9.28402601]
[1760097169808,0.0104,4352.9,4352.8,9.28202601]
[1760097170181,0.0104,4352.9,4352.8,8.2290718]
[1760097171375,0.0104,4352.9,4352.8,3.5694]
[1760097171581,0.0104,4352.9,4352.8,5.4824]
[1760097171776,0.0104,4352.9,4352.8,7.7797718]
[1760097172700,0.0104,4352.9,4352.8,5.4824]
[1760097173095,0.0104,4352.9,4352.8,7.7797718]
[1760097174123,2.2970081,4353.5,4352.8,7.6653718]
[1760097174422,1e-08,4353.9,4352.9,0.02297319]
[1760097174604,1e-08,4353.9,4353.0,5.752229]
[1760097174605,2.29684902,4353.8,4353.0,5.752229]
[1760097174809,2.29684902,4353.8,4353.1,2.29720035]
[1760097175002,2.29684902,4353.8,4353.2,3.455]
[1760097175207,1e-08,4353.9,4353.2,3.455]
[1760097175395,1e-08,4353.9,4353.3,2.2970972]
[1760097175580,1e-08,4353.9,4353.4,3.456]
[1760097176284,1e-08,4353.9,4353.4,5.75305311]
[1760097177622,1e-08,4353.9,4353.4,3.456]
[1760097179122,0.00130001,4353.9,4353.4,3.456]
[1760097180120,1e-08,4353.9,4353.3,2.29709365]
[1760097180288,1e-08,4353.9,4353.5,3.456]
[1760097184500,2.41035953,4354.0,4353.5,3.456]
[1760097185540,2.29679455,4353.9,4353.5,3.456]
[1760097185917,2.41165134,4354.0,4353.5,3.456]
[1760097186436,2.41164091,4354.0,4353.5,3.456]
[1760097186636,2.41034091,4354.0,4353.5,3.456]
[1760097189456,2.29679138,4353.9,4353.5,3.456]
[1760097189756,2.29689707,4353.7,4353.5,3.456]
[1760097189909,2.29689707,4353.7,4353.6,3.455]
[1760097190114,2.29819707,4353.7,4353.6,5.368]
[1760097190435,15.684587,4354.4,4353.6,3.456]
[1760097190607,15.684587,4354.4,4353.6,5.369]
[1760097190608,2.29669712,4354.1,4353.6,5.369]
[1760097190814,2.29799712,4354.1,4353.6,5.369]
[1760097191135,2.29673985,4354.0,4353.6,5.369]
[1760097191308,2.29810262,4353.9,4353.6,5.369]
[1760097191506,2.29815026,4353.8,4353.6,5.369]
[1760097191711,2.29700532,4353.5,4352.8,0.001]
[1760097191921,0.0013,4353.7,4352.9,5.369]
[1760097192207,2.29700611,4353.5,4352.9,5.369]
[1760097192610,2.29825984,4353.6,4352.9,5.369]
[1760097193449,2.29825984,4353.6,4352.9,7.66631458]
[1760097193648,2.29825984,4353.6,4352.8,0.001]
[1760097193649,2.29706613,4353.4,4352.8,0.001]
[1760097193855,2.29731902,4352.9,4352.8,1.914]
[1760097194016,2.29861902,4352.9,4352.8,5.372]
[1760097194214,9.85765407,4352.9,4352.8,0.001]
[1760097194414,9.8749088,4352.9,4352.8,5.372]
[1760097194814,11.7949088,4352.9,4352.8,5.372]
[1760097195109,11.7949088,4352.9,4352.8,3.459]
[1760097195439,20.0258218,4352.9,4352.8,3.459]
[1760097195747,20.0258218,4352.9,4352.8,3.46]
[1760097196114,20.02508772,4352.9,4352.8,3.46]
[1760097196449,4.85221902,4352.9,4352.8,3.46]
[1760097197817,4.85091902,4352.9,4352.8,3.46]
[1760097198129,4.85221902,4352.9,4352.8,3.46]
[1760097202650,4.21731902,4352.9,4352.8,3.46]
[1760097203724,1.92,4352.9,4352.8,3.46]
[1760097203918,4.21731902,4352.9,4352.8,3.46]
[1760097204547,4.21861902,4352.9,4352.8,3.46]
[1760097204735,4.21731902,4352.9,4352.8,3.46]
[1760097205156,4.21861902,4352.9,4352.8,3.46]
[1760097205459,4.21731902,4352.9,4352.8,3.46]
[1760097206158,4.21861902,4352.9,4352.8,3.46]
[1760097206668,4.21781902,4352.9,4352.8,3.46]
[1760097207025,4.21781902,4352.9,4352.8,5.374]
[1760097208431,4.21781902,4352.9,4352.8,0.001]
[1760097208832,4.21781902,4352.9,4352.8,5.374]
[1760097210356,1.9192,4352.9,4352.8,5.374]
[1760097210537,4.21781902,4352.9,4352.8,5.374]
[1760097211130,1.9205,4352.9,4352.8,5.374]
[1760097212455,1.9205,4352.9,4352.8,3.46]
[1760097212767,1.9205,4352.9,4352.8,5.374]
[1760097213976,4.21781902,4352.9,4352.8,5.374]
[1760097214180,1.9205,4352.9,4352.8,5.374]
[1760097214340,1.9192,4352.9,4352.8,5.374]
[1760097214540,0.1144,4353.1,4352.8,5.374]
[1760097215436,2.41164966,4353.1,4352.8,5.374]
[1760097215864,0.1144,4353.1,4352.8,5.374]
[1760097216076,0.1144,4353.5,4353.0,4.12085605]
[1760097216282,0.1144,4353.5,4353.1,3.459]
[1760097217040,0.1144,4353.5,4353.1,5.77916516]
[1760097217271,0.1144,4353.5,4353.1,5.75619303]
[1760097217471,0.1144,4353.5,4353.1,6.21279303]
[1760097217672,0.1144,4353.5,4353.1,3.9156]
[1760097217881,0.1144,4353.5,4353.1,3.459]
[1760097219080,2.41140291,4353.5,4353.1,3.459]
[1760097219783,0.1144,4353.5,4353.1,3.459]
[1760097220358,0.0013,4353.4,4353.1,3.459]
[1760097220595,0.0013,4353.4,4353.2,1.914]
[1760097220596,0.6336,4353.3,4353.2,1.914]
[1760097220805,2.93202496,4353.3,4353.2,5.373]
[1760097221188,15.53538796,4353.3,4353.2,5.373]
[1760097221399,17.95106501,4353.3,4353.2,5.373]
[1760097221567,14.20430901,4353.3,4353.2,5.373]
[1760097222275,12.29330001,4353.3,4353.2,5.373]
[1760097222480,7.68638301,4353.3,4353.2,5.373]
[1760097223277,5.34770201,4353.3,4353.2,5.373]
[1760097223576,2.29731902,4352.9,4352.8,0.001]
[1760097223781,2.29731902,4352.9,4352.8,5.374]
[1760097223976,2.29861902,4352.9,4352.8,5.374]
[1760097224910,0.0013,4352.9,4352.8,5.374]
[1760097226406,2.29711777,4353.3,4352.8,5.374]
[1760097226407,2.2971523,4353.3,4352.8,5.374]
[1760097226609,0.6349,4353.7,4352.8,5.374]
[1760097226788,2.2971249,4353.3,4352.8,5.374]
[1760097226991,2.2984249,4353.3,4352.8,5.374]
[1760097227606,2.29716183,4353.2,4352.8,5.374]
[1760097228307,0.0013,4353.3,4352.8,5.374]
[1760097228513,2.29842765,4353.3,4352.8,5.374]
[1760097228690,0.6328,4353.4,4352.8,5.374]
[1760097229006,2.92986033,4353.4,4352.8,5.374]
[1760097229615,2.29712485,4353.3,4352.8,5.374]
[1760097229809,2.29715884,4353.3,4352.8,5.374]
[1760097230010,0.0013,4353.2,4352.8,5.374]
[1760097230393,2.29715884,4353.3,4352.8,0.001]
[1760097230719,0.0939,4353.1,4352.9,5.372]
[1760097231013,2.29731902,4352.9,4352.8,0.001]
[1760097231214,2.29731902,4352.9,4352.8,5.373]
[1760097231509,2.29861902,4352.9,4352.8,5.373]
[1760097231912,0.6336,4353.0,4352.8,5.373]
[1760097232910,2.93086625,4353.0,4352.9,5.372]
[1760097234896,2.93216625,4353.0,4352.9,5.372]
[1760097235089,0.1144,4352.9,4352.8,0.001]
[1760097235295,0.1144,4352.9,4352.8,5.373]
[1760097239684,0.1144,4352.9,4352.8,0.001]
[1760097239918,0.1144,4352.9,4352.8,5.373]
[1760097239919,2.93221902,4352.9,4352.8,5.373]
[1760097241224,11.77305902,4352.9,4352.8,5.373]
[1760097241384,14.18922588,4352.9,4352.8,0.001]
[1760097241589,30.84913388,4352.9,4352.8,1.825]
[1760097241790,30.62525888,4352.9,4352.8,1.825]
[1760097242128,24.57930188,4352.9,4352.8,3.459]
[1760097242287,24.57930188,4352.9,4352.8,0.001]
[1760097242288,17.50546188,4352.9,4352.8,0.001]
[1760097242494,25.86890497,4352.9,4352.8,0.001]
[1760097242794,25.86890497,4352.9,4352.8,2.811]
[1760097243722,22.55236879,4352.9,4352.8,2.811]
[1760097244024,19.75993479,4352.9,4352.8,2.811]
[1760097244623,21.22234579,4352.9,4352.8,2.811]
[1760097245123,21.22234579,4352.9,4352.8,3.459]
[1760097245124,14.95636897,4352.9,4352.8,3.459]
[1760097245329,10.10467488,4352.9,4352.8,3.459]
[1760097245620,5.34838588,4352.9,4352.8,3.459]
[1760097245792,10.63724388,4352.9,4352.8,3.459]
[1760097246520,11.2569347,4352.9,4352.8,3.459]
[1760097246828,27.9478787,4352.9,4352.8,3.459]
[1760097247023,26.88541988,4352.9,4352.8,3.459]
[1760097247204,12.14695288,4352.9,4352.8,3.459]
[1760097247829,9.79538888,4352.9,4352.8,3.459]
[1760097248131,7.39678488,4352.9,4352.8,3.459]
[1760097248430,7.70956888,4352.9,4352.8,3.459]
[1760097248906,17.61913788,4352.9,4352.8,3.459]
[1760097249109,14.38852988,4352.9,4352.8,3.459]
[1760097249418,14.38852988,4352.9,4352.8,0.001]
[1760097249619,14.38852988,4352.9,4352.8,3.459]
[1760097249928,18.86643588,4352.9,4352.8,3.459]
[1760097250621,18.50022188,4352.9,4352.8,3.459]
[1760097250924,13.42330388,4352.9,4352.8,3.459]
[1760097251124,11.48330388,4352.9,4352.8,3.459]
[1760097251940,18.50008688,4352.9,4352.8,3.459]
[1760097252638,12.72232888,4352.9,4352.8,3.459]
[1760097253192,8.09990688,4352.9,4352.8,3.459]
[1760097253396,5.34758588,4352.9,4352.8,3.459]
[1760097255004,7.99163388,4352.9,4352.8,3.459]
[1760097255609,12.84332797,4352.9,4352.8,3.459]
[1760097256005,5.34758588,4352.9,4352.8,3.459]
[1760097256210,17.34078988,4352.9,4352.8,3.459]
[1760097257200,24.48645488,4352.9,4352.8,3.459]
[1760097257403,22.80606588,4352.9,4352.8,3.459]
[1760097257730,9.69686088,4352.9,4352.8,3.459]
[1760097257907,9.15111588,4352.9,4352.8,3.459]
[1760097258235,9.15116288,4352.9,4352.8,3.459]
[1760097258432,5.34758588,4352.9,4352.8,3.459]
[1760097259340,7.44380988,4352.9,4352.8,3.459]
[1760097261907,7.4432681,4352.9,4352.8,3.459]
[1760097263940,2.41562508,4352.9,4352.8,3.459]
[1760097264122,1.92,4352.9,4352.8,3.459]
[1760097264320,4.21731902,4352.9,4352.8,3.459]
[1760097264515,4.21861902,4352.9,4352.8,3.459]
[1760097267251,1.92,4352.9,4352.8,3.459]
[1760097267541,4.21731902,4352.9,4352.8,3.459]
[1760097267953,0.002,4353.1,4352.8,3.459]
[1760097268250,2.41361792,4353.1,4352.8,3.459]
[1760097268451,4.33361792,4353.1,4352.8,3.459]
[1760097268638,2.41361792,4353.1,4352.8,3.459]
[1760097269651,2.29731902,4352.9,4352.8,0.001]
[1760097269862,2.29731902,4352.9,4352.8,5.372]
[1760097270065,2.29861902,4352.9,4352.8,5.372]
[1760097270226,2.29861902,4352.9,4352.8,0.001]
[1760097270414,2.29861902,4352.9,4352.8,5.372]
[1760097272923,2.29781902,4352.9,4352.8,5.372]
[1760097275556,7.02177702,4352.9,4352.8,0.001]
[1760097275757,35.34704677,4352.9,4352.8,0.001]
[1760097275963,31.33313977,4352.9,4352.8,0.001]
[1760097276168,31.33313977,4352.9,4352.8,0.471]
[1760097276389,31.95267112,4352.9,4352.8,0.471]
[1760097276729,31.69049512,4352.9,4352.8,0.471]
[1760097276936,22.50143312,4352.9,4352.8,0.471]
[1760097277567,22.50343312,4352.9,4352.8,0.471]
[1760097277733,24.75245512,4352.9,4352.8,0.471]
[1760097277934,22.70463012,4352.9,4352.8,0.001]
[1760097278257,22.70463012,4352.9,4352.8,0.988]
[1760097278770,24.45514512,4352.9,4352.8,0.988]
[1760097279152,24.45514512,4352.9,4352.8,0.001]
[1760097279377,21.55188877,4352.9,4352.8,0.47]
[1760097279747,12.22990077,4352.9,4352.8,0.47]
[1760097279947,12.84938593,4352.9,4352.8,0.47]
[1760097280532,12.84938593,4352.9,4352.8,3.458]
[1760097280736,5.96853869,4352.9,4352.8,3.458]
[1760097280957,20.67068969,4352.9,4352.8,3.458]
[1760097281159,11.33977378,4352.9,4352.8,3.458]
[1760097281848,20.78015678,4352.9,4352.8,3.458]
[1760097282775,8.35699977,4352.9,4352.8,3.458]
[1760097282942,13.61653377,4352.9,4352.8,3.458]
[1760097283146,12.37845277,4352.9,4352.8,3.458]
[1760097283748,7.85557977,4352.9,4352.8,3.458]
[1760097283954,13.21971977,4352.9,4352.8,3.458]
[1760097285138,19.65604177,4352.9,4352.8,3.458]
[1760097285750,12.51691677,4352.9,4352.8,3.458]
[1760097285941,8.53303877,4352.9,4352.8,3.458]
[1760097286141,9.60001577,4352.9,4352.8,3.458]
[1760097287277,20.44031677,4352.9,4352.8,3.458]
[1760097287453,16.21441477,4352.9,4352.8,3.458]
[1760097287775,7.79049377,4352.9,4352.8,3.458]
[1760097287939,5.34904677,4352.9,4352.8,3.458]
[1760097288473,8.14127577,4352.9,4352.8,3.458]
[1760097288772,2.41762775,4352.9,4352.8,3.458]
[1760097289077,4.21931902,4352.9,4352.8,3.458]
[1760097289277,4.71624677,4352.9,4352.8,3.458]
[1760097289653,4.71494677,4352.9,4352.8,3.458]
[1760097289865,4.21931902,4352.9,4352.8,3.458]
[1760097290442,4.22061902,4352.9,4352.8,3.458]
[1760097292575,4.22061902,4352.9,4352.8,5.372]
[1760097292780,4.71623169,4352.9,4352.8,5.372]
[1760097294247,4.71623169,4352.9,4352.8,0.001]
[1760097294454,7.61632369,4352.9,4352.8,5.372]
[1760097294843,7.61552369,4352.9,4352.8,5.372]
[1760097296963,7.61552369,4352.9,4352.8,3.458]
[1760097297168,7.61552369,4352.9,4352.8,5.372]
[1760097298379,4.71543169,4352.9,4352.8,5.372]
[1760097300094,4.71581164,4352.9,4352.8,5.372]
[1760097301013,5.34941164,4352.9,4352.8,5.372]
[1760097301312,35.34941164,4352.9,4352.8,0.001]
[1760097301534,35.34941164,4352.9,4352.8,3.458]
[1760097301535,8.31986764,4352.9,4352.8,3.458]
[1760097301740,7.66947664,4352.9,4352.8,3.458]
[1760097302329,15.35073964,4352.9,4352.8,3.458]
[1760097302485,5.34941164,4352.9,4352.8,3.458]
[1760097303695,2.41719262,4352.9,4352.8,3.458]
[1760097303891,1.9212,4352.9,4352.8,3.458]
[1760097307719,0.002,4352.9,4352.8,3.458]
[1760097308216,2.29931902,4352.9,4352.8,3.458]
[1760097309995,0.002,4352.9,4352.8,3.458]
[1760097310831,0.1164,4352.9,4352.8,3.458]
[1760097312354,0.002,4352.9,4352.8,3.458]
[1760097317147,0.0012,4352.9,4352.8,3.458]
[1760097321961,0.0025,4352.9,4352.8,3.458]
[1760097322461,0.0012,4352.9,4352.8,3.458]
[1760097322660,0.0012,4352.9,4352.8,0.001]
[1760097322860,27.04314097,4352.9,4352.8,3.457]
[1760097323070,7.55282879,4352.9,4352.8,3.457]
[1760097323227,3.42938184,4352.9,4352.8,3.457]
[1760097323432,2.93341902,4352.9,4352.8,3.457]
[1760097325443,3.42943783,4352.9,4352.8,3.457]
[1760097325661,16.30402383,4352.9,4352.8,3.457]
[1760097326080,16.30402383,4352.9,4352.8,5.371]
[1760097326374,7.54864483,4352.9,4352.8,5.371]
[1760097326528,7.93995783,4352.9,4352.8,5.371]
[1760097326728,6.00288983,4352.9,4352.8,5.371]
[1760097327128,3.42943783,4352.9,4352.8,5.371]
[1760097327328,6.29315883,4352.9,4352.8,5.371]
[1760097327556,3.42943783,4352.9,4352.8,5.371]
[1760097328564,2.93341902,4352.9,4352.8,5.371]
[1760097331984,2.93211902,4352.9,4352.8,5.371]
[1760097333379,2.93341902,4352.9,4352.8,5.371]
[1760097334387,2.93211902,4352.9,4352.8,5.371]
[1760097337581,2.93341902,4352.9,4352.8,5.371]
[1760097339172,2.93261902,4352.9,4352.8,5.371]
[1760097339752,12.63784872,4352.9,4352.8,5.371]
[1760097340543,16.76129567,4352.9,4352.8,5.371]
[1760097340743,19.04248867,4352.9,4352.8,5.371]
[1760097341671,19.50273767,4352.9,4352.8,5.371]
[1760097341865,19.49656867,4352.9,4352.8,5.371]
[1760097342441,21.41656867,4352.9,4352.8,5.371]
[1760097342880,19.14098067,4352.9,4352.8,0.001]
[1760097343049,19.14098067,4352.9,4352.8,3.457]
[1760097343050,2.4166107,4352.9,4352.8,3.457]
[1760097343251,4.21771902,4352.9,4352.8,3.457]
[1760097343641,4.21901902,4352.9,4352.8,3.457]
[1760097344772,1.9217,4352.9,4352.8,3.457]
[1760097344975,1.9204,4352.9,4352.8,3.457]
[1760097345477,0.0004,4352.9,4352.8,3.457]
[1760097349114,0.1148,4352.9,4352.8,3.457]
[1760097353982,0.0004,4352.9,4352.8,3.47997371]
[1760097354200,0.0004,4352.9,4352.8,4.75412935]
[1760097354509,0.0004,4352.9,4352.8,4.73115564]
[1760097354685,0.0004,4352.9,4352.8,4.27005564]
[1760097356782,0.0004,4352.9,4352.8,0.81405564]
[1760097357018,0.0004,4352.9,4352.8,5.371]
[1760097358515,0.0004,4352.9,4352.8,0.001]
[1760097358721,0.0004,4352.9,4352.8,5.371]
[1760097359386,0.0004,4352.9,4352.8,5.8369]
[1760097359713,0.0004,4352.9,4352.8,5.371]
[1760097361215,0.116,4353.1,4352.8,5.371]
[1760097361595,0.116,4353.1,4352.8,6.18453169]
[1760097361797,0.0016,4353.1,4353.0,2.29726625]
[1760097362105,0.0016,4353.1,4353.0,3.456]
[1760097363182,0.0016,4353.1,4352.8,0.81453169]
[1760097363526,2.30011855,4353.1,4352.9,5.37]
[1760097363816,2.29881855,4353.1,4352.9,5.37]
[1760097364517,2.30011855,4353.1,4352.9,5.37]